fUSD/lending_fUSD_20260528
["ID","MTS","AMOUNT","RATE_DAILY","PERIOD"]
[423226453,1779953446000,-1071.80202474,0.00014808,2]
[423226561,1779953465000,670.0,0.00028082,120]
[423226562,1779953484000,-242.33711626,0.00012999,2]
[423226563,1779953485000,150.0,9.699e-05,2]
[423226564,1779953538000,-222.2,9.899e-05,2]
[423226565,1779953674000,-150.0,9.602e-05,2]
[423226566,1779953728000,-277.8,9.899e-05,2]
[423226567,1779953781000,-150.0,0.000102,2]
[423226568,1779953804000,152.0,0.00018277,120]
[423226569,1779953805000,152.0,0.00018308,120]
[423226570,1779953834000,-150.0,0.00010301,2]
[423226573,1779953867000,153.46,6.487e-05,2]
[423226572,1779953867000,153.46,6.178e-05,2]
[423226571,1779953867000,153.46,5.87e-05,2]
[423226578,1779953868000,153.46,8.032e-05,2]
[423226577,1779953868000,153.46,7.723e-05,2]
[423226576,1779953868000,153.46,7.414e-05,2]
[423226575,1779953868000,153.46,7.105e-05,2]
[423226574,1779953868000,153.46,6.796e-05,2]
[423226579,1779953869000,153.46,8.341e-05,2]
[423226580,1779953872000,200.0,5e-05,120]
[423226581,1779953873000,200.0,5e-05,120]
[423226582,1779953874000,200.0,5e-05,120]
[423226583,1779953875000,200.0,1.8e-06,2]
[423226584,1779953888000,-153.46,8.65e-05,2]
[423226586,1779953888000,152.0,0.00018277,120]
[423226585,1779953888000,152.0,0.00018277,120]
[423226588,1779953907000,166.47,0.00010608,30]
[423226587,1779953907000,166.47,0.00010504,30]
[423226590,1779953908000,166.47,0.00010819,30]
[423226589,1779953908000,166.47,0.00010714,30]
[423226591,1779953909000,166.47,0.00010924,30]
[423226592,1779953941000,-250.0,8.804e-05,2]
[423226593,1779953957000,200.0,5e-05,120]
[423226594,1779953959000,152.0,0.00018308,120]
[423226595,1779953974000,166.49,0.00010651,30]
[423226596,1779953994000,-153.46,8.959e-05,2]
[423226597,1779954047000,-196.12909087,9.113e-05,2]
[423226598,1779954101000,-160.4,9.124e-05,2]
[423226599,1779954154000,-153.46,9.268e-05,2]
[423226600,1779954278000,2483.0,0.00028082,120]
[423226601,1779954326000,-500.0,9.502e-05,2]
[423226602,1779954339000,-175.38475488,9.539e-05,2]
[423226603,1779954358000,152.0,0.0001072,30]
[423226605,1779954359000,152.0,0.00019288,120]
[423226604,1779954359000,152.0,0.0001072,30]
[423226606,1779954380000,-74.61524512,9.539e-05,2]
[423226609,1779954417000,-113.63200828,9.691e-05,2]
[423226607,1779954417000,-153.46,9.577e-05,2]
[423226608,1779954417000,-150.0,9.596e-05,2]
[423226610,1779954434000,-36.36799172,9.691e-05,2]
[423226611,1779954443000,-150.0,9.786e-05,2]
[423226614,1779954443000,-37.84342195,9.976e-05,2]
[423226612,1779954443000,-150.0,9.881e-05,2]
[423226613,1779954443000,-153.46,9.886e-05,2]
[423226618,1779954445000,-115.03169327,0.00010195,2]
[423226616,1779954445000,-150.0,0.00010071,2]
[423226617,1779954445000,-150.0,0.00010166,2]
[423226615,1779954445000,-112.15657805,9.976e-05,2]
[423226619,1779954445000,152.0,0.0001072,30]
[423226620,1779954446000,152.0,0.00010742,30]
[423226622,1779954447000,152.0,0.00019255,120]
[423226621,1779954447000,152.0,0.00019255,120]
[423226623,1779954453000,-38.42830673,0.00010195,2]
[423226624,1779954453000,-133.37097848,0.00010452,2]
[423226625,1779954487000,-230.77038372,0.00010404,2]
[423226626,1779954540000,-116.62902152,0.00010452,2]
[423226627,1779954541000,1000.0,0.00028081,120]
[423226628,1779954593000,-5729.0,0.00010485,2]
[423226629,1779954599000,161.99,6.029e-05,2]
[423226630,1779954616000,152.0,0.00010651,30]
[423226631,1779954617000,152.0,0.00010651,30]
[423226632,1779954618000,152.0,0.00019014,120]
[423226672,1779954632000,-299.86535015,0.00010995,2]
[423226657,1779954632000,-654.01232018,0.00010995,2]
[423226659,1779954632000,-500.0,0.00010995,2]
[423226658,1779954632000,-500.0,0.00010995,2]
[423226660,1779954632000,-654.01232018,0.00010995,2]
[423226661,1779954632000,-500.0,0.00010995,2]
[423226656,1779954632000,-197.64459508,0.00010995,2]
[423226655,1779954632000,-456.3677251,0.00010995,2]
[423226662,1779954632000,-500.0,0.00010995,2]
[423226664,1779954632000,-176.33965377,0.00010995,2]
[423226663,1779954632000,-654.01232018,0.00010995,2]
[423226665,1779954632000,-253.67827096,0.00010995,2]
[423226666,1779954632000,-654.01232018,0.00010995,2]
[423226669,1779954632000,-654.01232018,0.00010995,2]
[423226667,1779954632000,-654.01232018,0.00010995,2]
[423226676,1779954632000,-101.68792276,0.00010995,2]
[423226670,1779954632000,-177.3090266,0.00010995,2]
[423226652,1779954632000,-418.00775612,0.00010995,2]
[423226646,1779954632000,-213.93849686,0.00010969,2]
[423226654,1779954632000,-544.05008047,0.00010995,2]
[423226675,1779954632000,-176.83794343,0.00010995,2]
[423226638,1779954632000,-450.78445746,0.00010614,2]
[423226636,1779954632000,-529.13660087,0.00010613,2]
[423226639,1779954632000,-316.11449079,0.00010614,2]
[423226637,1779954632000,-670.86339913,0.00010613,2]
[423226635,1779954632000,-153.46,0.00010504,2]
[423226640,1779954632000,-1075.43,0.00010614,2]
[423226641,1779954632000,-1827.01871975,0.00010614,2]
[423226642,1779954632000,-467.29685263,0.00010614,2]
[423226645,1779954632000,-153.46,0.00010812,2]
[423226644,1779954632000,-152.0,0.0001075,2]
[423226643,1779954632000,-4737.35547937,0.00010614,2]
[423226650,1779954632000,-496.86719525,0.00010995,2]
[423226647,1779954632000,-300.0,0.00010988,2]
[423226648,1779954632000,-300.0,0.00010988,2]
[423226649,1779954632000,-749.84646836,0.00010989,2]
[423226651,1779954632000,-500.0,0.00010995,2]
[423226653,1779954632000,-500.0,0.00010995,2]
[423226678,1779954632000,-654.01232018,0.00010995,2]
[423226707,1779954632000,-164.19,0.00012001,2]
[423226680,1779954632000,-654.01232018,0.00010995,2]
[423226702,1779954632000,-1356.08,0.00011717,2]
[423226700,1779954632000,-500.98,0.00011681,2]
[423226703,1779954632000,-153.46,0.00011739,2]
[423226704,1779954632000,-500.98,0.00011973,2]
[423226705,1779954632000,-152.0,0.00011988,2]
[423226677,1779954632000,-552.32439742,0.00010995,2]
[423226709,1779954632000,-161.99,0.00012058,2]
[423226701,1779954632000,-500.0,0.00011703,2]
[423226708,1779954632000,-230.7703837,0.00012002,2]
[423226711,1779954632000,-420.0,0.00012075,2]
[423226712,1779954632000,-328.76,0.00012134,2]
[423226714,1779954632000,-4630.82,0.00012257,2]
[423226710,1779954632000,-332.31,0.00012061,2]
[423226715,1779954632000,-500.98,0.00012265,2]
[423226713,1779954632000,-2877.58,0.0001214,2]
[423226717,1779954632000,-500.98,0.00012557,2]
[423226716,1779954632000,-151.0,0.00012279,2]
[423226696,1779954632000,-153.46,0.0001143,2]
[423226706,1779954632000,-2000.0,0.00011998,2]
[423226699,1779954632000,-1680.0,0.00011674,2]
[423226698,1779954632000,-150.0,0.00011607,2]
[423226682,1779954632000,-654.01232018,0.00010995,2]
[423226681,1779954632000,-654.01232018,0.00010995,2]
[423226683,1779954632000,-654.01232018,0.00010995,2]
[423226685,1779954632000,-654.01232018,0.00010995,2]
[423226686,1779954632000,-654.01232018,0.00010995,2]
[423226684,1779954632000,-654.01232018,0.00010995,2]
[423226687,1779954632000,-654.01232018,0.00010995,2]
[423226679,1779954632000,-654.01232018,0.00010995,2]
[423226689,1779954632000,-654.01232018,0.00010995,2]
[423226690,1779954632000,-500.0,0.00010996,2]
[423226691,1779954632000,-6967.28364547,0.00011,2]
[423226692,1779954632000,-153.46,0.00011121,2]
[423226694,1779954632000,-4020.81860336,0.00011332,2]
[423226695,1779954632000,-6056.0,0.00011402,2]
[423226693,1779954632000,-200.0,0.0001119,2]
[423226697,1779954632000,-271.2824293,0.00011605,2]
[423226688,1779954632000,-654.01232018,0.00010995,2]
[423226738,1779954633000,-3746.6,0.00013699,2]
[423226739,1779954633000,-22973.4,0.00013699,2]
[423226742,1779954633000,-9999.99,0.00013699,2]
[423226741,1779954633000,-299.99,0.00013699,2]
[423226744,1779954633000,-9999.99,0.00013699,2]
[423226743,1779954633000,-2773.63,0.00013699,2]
[423226750,1779954633000,-350.13640107,0.00013854,2]
[423226749,1779954633000,-166.66,0.00013836,2]
[423226748,1779954633000,-496.29389716,0.00013699,2]
[423226746,1779954633000,-5463.66,0.00013699,2]
[423226745,1779954633000,-999.99,0.00013699,2]
[423226751,1779954633000,-166.66,0.00013973,2]
[423226752,1779954633000,-250.0,0.00014,2]
[423226753,1779954633000,-166.66,0.0001411,2]
[423226755,1779954633000,-645.86663214,0.00014201,2]
[423226747,1779954633000,-500.0,0.00013699,2]
[423226737,1779954633000,-166.66,0.00013699,2]
[423226718,1779954633000,-2351.0,0.00012842,2]
[423226735,1779954633000,-552.80198115,0.00013698,2]
[423226754,1779954633000,-494.05405209,0.00014201,2]
[423226719,1779954633000,-500.98,0.00012849,2]
[423226721,1779954633000,-9999.99,0.00012893,2]
[423226720,1779954633000,-150.99,0.00012893,2]
[423226722,1779954633000,-2454.35,0.0001309,2]
[423226724,1779954633000,-152.0,0.00013227,7]
[423226723,1779954633000,-152.0,0.00013227,7]
[423226726,1779954633000,-152.0,0.00013231,7]
[423226728,1779954633000,-587.0,0.00013269,2]
[423226729,1779954633000,-152.0,0.00013374,7]
[423226727,1779954633000,-152.0,0.00013235,7]
[423226725,1779954633000,-152.0,0.00013231,7]
[423226731,1779954633000,-2000.0,0.00013498,2]
[423226730,1779954633000,-152.0,0.00013374,7]
[423226732,1779954633000,-2500.0,0.00013599,2]
[423226734,1779954633000,-169.63598138,0.00013698,2]
[423226733,1779954633000,-230.7703837,0.00013599,2]
[423226736,1779954633000,-200.0,0.00013699,2]
[423226758,1779954633000,-500.0,0.00014201,2]
[423226740,1779954633000,-2940.98,0.00013699,2]
[423226759,1779954633000,-500.0,0.00014201,2]
[423226784,1779954633000,-500.0,0.0001461,2]
[423226783,1779954633000,-500.0,0.0001461,2]
[423226781,1779954633000,-500.0,0.0001461,2]
[423226782,1779954633000,-500.0,0.0001461,2]
[423226779,1779954633000,-500.0,0.0001461,2]
[423226785,1779954633000,-200.0,0.0001461,2]
[423226788,1779954633000,-200.0,0.0001461,2]
[423226780,1779954633000,-500.0,0.0001461,2]
[423226786,1779954633000,-200.0,0.0001461,2]
[423226790,1779954633000,-200.0,0.0001461,2]
[423226792,1779954633000,-151.516988,0.0001461,2]
[423226793,1779954633000,-179.56,0.0001461,2]
[423226796,1779954633000,-47902.04997917,0.0001461,2]
[423226795,1779954633000,-186554.20717484,0.0001461,2]
[423226791,1779954633000,-200.0,0.0001461,2]
[423226794,1779954633000,-175.2751763,0.0001461,2]
[423226789,1779954633000,-200.0,0.0001461,2]
[423226778,1779954633000,-500.0,0.0001461,2]
[423226787,1779954633000,-200.0,0.0001461,2]
[423226776,1779954633000,-500.0,0.00014601,2]
[423226777,1779954633000,-225556.228,0.00014601,2]
[423226760,1779954633000,-500.0,0.00014201,2]
[423226761,1779954633000,-500.0,0.00014201,2]
[423226757,1779954633000,-500.0,0.00014201,2]
[423226764,1779954633000,-166.66,0.00014247,2]
[423226763,1779954633000,-500.0,0.00014201,2]
[423226765,1779954633000,-350.0,0.00014374,2]
[423226767,1779954633000,-4756.53045861,0.0001451,2]
[423226766,1779954633000,-166.66,0.00014384,2]
[423226762,1779954633000,-500.0,0.00014201,2]
[423226756,1779954633000,-500.0,0.00014201,2]
[423226769,1779954633000,-5000.0,0.0001451,2]
[423226770,1779954633000,-413.99235034,0.00014512,2]
[423226773,1779954633000,-823.0,0.00014581,2]
[423226771,1779954633000,-177.93776761,0.00014512,2]
[423226772,1779954633000,-4756.53045856,0.00014553,2]
[423226775,1779954633000,-500.0,0.000146,2]
[423226774,1779954633000,-4756.53045856,0.00014597,2]
[423226768,1779954633000,-2684.84335567,0.0001451,2]
[423227553,1779954647000,-654.01232018,0.00010995,2]
[423227556,1779954647000,-654.01232018,0.00010995,2]
[423227547,1779954647000,-654.01232018,0.00010995,2]
[423227546,1779954647000,-654.01232018,0.00010995,2]
[423227559,1779954647000,-654.01232018,0.00010995,2]
[423227544,1779954647000,-654.01232018,0.00010995,2]
[423227558,1779954647000,-654.01232018,0.00010995,2]
[423227555,1779954647000,-654.01232018,0.00010995,2]
[423227548,1779954647000,-654.01232018,0.00010995,2]
[423227543,1779954647000,-654.01232018,0.00010995,2]
[423227540,1779954647000,-654.01232018,0.00010995,2]
[423227542,1779954647000,-654.01232018,0.00010995,2]
[423227539,1779954647000,-654.01232018,0.00010995,2]
[423227537,1779954647000,-654.01232018,0.00010995,2]
[423227538,1779954647000,-654.01232018,0.00010995,2]
[423227536,1779954647000,-654.01232018,0.00010995,2]
[423227545,1779954647000,-654.01232018,0.00010995,2]
[423227541,1779954647000,-654.01232018,0.00010995,2]
[423227551,1779954647000,-654.01232018,0.00010995,2]
[423227560,1779954647000,-654.01232018,0.00010995,2]
[423227576,1779954647000,-150.0,0.00010188,2]
[423227577,1779954647000,-271.07583695,0.0001461,2]
[423227573,1779954647000,-94557.47355402,0.0001461,2]
[423227574,1779954647000,-88.532839,0.0001461,2]
[423227569,1779954647000,-654.01232018,0.00010995,2]
[423227571,1779954647000,-150.0,0.00011941,2]
[423227568,1779954647000,-654.01232018,0.00010995,2]
[423227566,1779954647000,-160.64549661,0.00010995,2]
[423227575,1779954647000,-299.99,0.0001461,2]
[423227570,1779954647000,-654.01232018,0.00010995,2]
[423227565,1779954647000,-654.01232018,0.00010995,2]
[423227572,1779954647000,-510.82,0.00011966,2]
[423227562,1779954647000,-654.01232018,0.00010995,2]
[423227561,1779954647000,-654.01232018,0.00010995,2]
[423227549,1779954647000,-654.01232018,0.00010995,2]
[423227564,1779954647000,-654.01232018,0.00010995,2]
[423227567,1779954647000,-493.36682357,0.00010995,2]
[423227563,1779954647000,-654.01232018,0.00010995,2]
[423227584,1779954648000,-386.40205123,0.0001461,2]
[423227582,1779954648000,-441.4235254,0.00014601,2]
[423227581,1779954648000,-58.5764746,0.00014601,2]
[423227580,1779954648000,-46.34355647,0.0001461,2]
[423227579,1779954648000,-1867.39643538,0.0001461,2]
[423227578,1779954648000,-5693.85611605,0.0001461,2]
[423227583,1779954648000,-198.54154333,0.0001461,2]
[423227591,1779954854000,-500.0,0.00010404,2]
[423227592,1779954908000,-230.77038372,0.00010894,2]
[423227593,1779954961000,-500.0,0.00010304,2]
[423227594,1779955014000,-160.4,0.00010641,2]
[423227595,1779955068000,-150.0,0.00010991,2]
[423227596,1779955121000,-866.0,0.00010992,2]
[423227597,1779955174000,-300.0,0.0001099,2]
[423227598,1779955228000,-1015.85238086,0.0001019,2]
[423227599,1779955281000,-717.51032,0.00010191,2]
[423227601,1779955335000,-150.0,0.00010301,2]
[423227602,1779955337000,291.0,0.00010505,20]
[423227603,1779955339000,155.48,6.016e-05,2]
[423227608,1779955418000,-195.3636,0.0001009,2]
[423227607,1779955418000,-250.0,9.927e-05,2]
[423227606,1779955418000,-155.48,9.025e-05,2]
[423227610,1779955418000,-186.0,0.00010505,2]
[423227611,1779955418000,-1200.0,0.0001099,2]
[423227609,1779955418000,-150.0,0.00010403,2]
[423227613,1779955428000,-150.0,0.00011821,2]
[423227614,1779955428000,-3608.40264561,0.00011881,2]
[423227612,1779955428000,-1241.59735439,0.00011287,2]
[423227615,1779955430000,-5000.0,0.00011881,2]
[423227616,1779955431000,-5000.0,0.00011881,2]
[423227617,1779955432000,-5000.0,0.00011881,2]
[423227622,1779955433000,-1712.34264561,0.00012077,2]
[423227620,1779955433000,-161.75,0.00012024,2]
[423227621,1779955433000,-155.48,0.00012033,2]
[423227619,1779955433000,-2970.42735439,0.00011881,2]
[423227618,1779955433000,-5000.0,0.00011881,2]
[423227625,1779955434000,-150.0,0.00012086,2]
[423227623,1779955434000,-5000.0,0.00012077,2]
[423227626,1779955434000,-2078.33264535,0.00012087,2]
[423227624,1779955434000,-2771.66735465,0.00012077,2]
[423227629,1779955435000,-5000.0,0.00012087,2]
[423227628,1779955435000,-5000.0,0.00012087,2]
[423227627,1779955435000,-5000.0,0.00012087,2]
[423227630,1779955435000,-5000.0,0.00012087,2]
[423227631,1779955436000,-5000.0,0.00012087,2]
[423227639,1779955438000,-2872.65264535,0.00012091,2]
[423227638,1779955438000,-150.99,0.00012091,2]
[423227637,1779955438000,-299.99,0.00012091,2]
[423227636,1779955438000,-1630.54,0.00012091,2]
[423227635,1779955438000,-45.82735465,0.00012089,2]
[423227634,1779955438000,-1249.17264535,0.00012089,2]
[423227632,1779955438000,-3499.92735465,0.00012087,2]
[423227633,1779955438000,-250.9,0.00012087,2]
[423227640,1779955439000,-5000.0,0.00012091,2]
[423227641,1779955440000,-2127.33735465,0.00012091,2]
[423227642,1779955440000,-2872.66264535,0.00012091,2]
[423227644,1779955441000,-4700.0,0.00012091,2]
[423227643,1779955441000,-300.0,0.0001209,2]
[423227646,1779955447000,-2572.67264535,0.000122,2]
[423227645,1779955447000,-2427.32735465,0.00012091,2]
[423227647,1779955483000,-194.85314122,0.00012076,2]
[423227649,1779955536000,-300.0,0.00012107,2]
[423227650,1779955589000,-300.0,0.00012107,2]
[423227651,1779955594000,203.0,8.1e-05,2]
[423227652,1779955619000,-2813.0,0.00012108,2]
[423227654,1779955643000,-2113.1586197,0.00012108,2]
[423227653,1779955643000,-300.0,0.00012107,2]
[423227655,1779955696000,-5769.07166211,0.00012108,2]
[423227656,1779955716000,-186.25996153,0.00012107,2]
[423227657,1779955740000,1000.0,0.0002808,120]
[423227658,1779955770000,-200.2,0.00012,2]
[423227659,1779955823000,-152.17736132,0.00012006,2]
[423227694,1779955831000,-161.75,0.00012825,2]
[423227692,1779955831000,-4764.55,0.00012752,2]
[423227690,1779955831000,-442.3205589,0.00012665,2]
[423227685,1779955831000,-1282.48968,0.00012498,2]
[423227688,1779955831000,-500.0,0.00012654,2]
[423227696,1779955831000,-8826.68,0.0001292,2]
[423227682,1779955831000,-2000.0,0.00012487,2]
[423227686,1779955831000,-334.54,0.00012581,2]
[423227680,1779955831000,-990.31,0.00012436,2]
[423227681,1779955831000,-453.09,0.00012436,2]
[423227676,1779955831000,-500.0,0.0001238,2]
[423227678,1779955831000,-268.13,0.00012398,2]
[423227674,1779955831000,-200.0,0.00012369,2]
[423227673,1779955831000,-163.07,0.00012329,2]
[423227672,1779955831000,-572.59,0.0001225,2]
[423227670,1779955831000,-500.0,0.00012106,2]
[423227671,1779955831000,-24028.96862929,0.00012108,2]
[423227669,1779955831000,-79.27379233,0.00012106,2]
[423227667,1779955831000,-1200.0,0.00012105,2]
[423227668,1779955831000,-500.0,0.00012106,2]
[423227666,1779955831000,-150.0,0.00012105,2]
[423227679,1779955831000,-161.75,0.00012425,2]
[423227700,1779955831000,-6193.0,0.00013063,2]
[423227703,1779955831000,-500.0,0.00013113,2]
[423227702,1779955831000,-191.44632185,0.00013113,2]
[423227723,1779955831000,-1963.9516,0.00013599,2]
[423227701,1779955831000,-203.28010389,0.00013113,2]
[423227721,1779955831000,-678.04,0.00013521,2]
[423227720,1779955831000,-6826.44778877,0.00013387,2]
[423227714,1779955831000,-330.89,0.00013281,2]
[423227717,1779955831000,-47749.40535743,0.00013298,2]
[423227716,1779955831000,-45779.52464257,0.00013298,2]
[423227719,1779955831000,-152.0,0.00013332,7]
[423227718,1779955831000,-188.70704376,0.00013298,2]
[423227715,1779955831000,-500.0,0.00013298,2]
[423227722,1779955831000,-6826.44778877,0.00013576,2]
[423227711,1779955831000,-161.75,0.00013226,2]
[423227713,1779955831000,-159.12,0.00013241,2]
[423227698,1779955831000,-9711.32735465,0.00013024,2]
[423227706,1779955831000,-477.9028712,0.00013113,2]
[423227704,1779955831000,-500.0,0.00013113,2]
[423227705,1779955831000,-281.86556769,0.00013113,2]
[423227707,1779955831000,-6823.0,0.00013114,2]
[423227709,1779955831000,-6826.44778879,0.00013198,2]
[423227710,1779955831000,-387.37335751,0.00013207,2]
[423227712,1779955831000,-152.0,0.00013231,7]
[423227708,1779955831000,-255.0,0.00013182,2]
[423227734,1779955832000,-37814.85159031,0.00013961,2]
[423227737,1779955832000,-1006.79712,0.00013961,2]
[423227736,1779955832000,-1012.99585992,0.00013961,2]
[423227740,1779955832000,-2000.0,0.00014047,2]
[423227738,1779955832000,-1150.935,0.00013961,2]
[423227739,1779955832000,-108615.11695607,0.00013961,2]
[423227735,1779955832000,-1048.9350378,0.00013961,2]
[423227733,1779955832000,-6826.44778877,0.00013954,2]
[423227728,1779955832000,-500.0,0.000137,5]
[423227731,1779955832000,-1500.0,0.000139,5]
[423227729,1779955832000,-6826.44778877,0.00013765,2]
[423227730,1779955832000,-1000.0,0.000138,5]
[423227725,1779955832000,-190.8,0.00013699,2]
[423227726,1779955832000,-200.0,0.00013699,2]
[423227724,1779955832000,-500.0,0.00013698,2]
[423227727,1779955832000,-163.41,0.000137,2]
[423227732,1779955832000,-2349.23793622,0.00013944,2]
[423227742,1779955832000,-6826.44778877,0.00014144,2]
[423227750,1779955832000,-354.85058598,0.000144,2]
[423227749,1779955832000,-190.8,0.00014384,2]
[423227758,1779955832000,-29125.79151653,0.0001444,2]
[423227759,1779955832000,-57254.7765097,0.0001444,2]
[423227757,1779955832000,-80618.68859394,0.0001444,2]
[423227756,1779955832000,-307984.18305101,0.0001444,2]
[423227760,1779955832000,-353.8945,0.0001444,2]
[423227748,1779955832000,-250.0,0.00014357,2]
[423227755,1779955832000,-1764.0,0.0001444,5]
[423227754,1779955832000,-567.76,0.00014439,2]
[423227753,1779955832000,-544.38223571,0.00014439,2]
[423227746,1779955832000,-6826.44778877,0.00014333,2]
[423227745,1779955832000,-7336.10444233,0.00014329,2]
[423227747,1779955832000,-5000.0,0.0001434,2]
[423227744,1779955832000,-7336.10444233,0.00014234,2]
[423227751,1779955832000,-7336.10444233,0.00014424,2]
[423227743,1779955832000,-334.54,0.00014154,2]
[423227741,1779955832000,-7336.10444233,0.00014139,2]
[423227752,1779955832000,-500.0,0.00014439,2]
[423227769,1779955837000,-200.0,0.0001315,2]
[423227772,1779955837000,-383.736,0.0001434,2]
[423227773,1779955837000,-4557.664,0.0001434,2]
[423227774,1779955837000,-35208.79596109,0.0001444,2]
[423227771,1779955837000,-58.6,0.0001434,2]
[423227775,1779955837000,-1096.30377582,0.0001444,2]
[423227778,1779955837000,-1188.48682912,0.0001444,2]
[423227777,1779955837000,-20455.77943862,0.0001444,2]
[423227780,1779955837000,-357.03368088,0.0001444,2]
[423227779,1779955837000,-805.6,0.0001444,2]
[423227782,1779955837000,-45350.0,0.0001444,2]
[423227781,1779955837000,-5769.07166211,0.0001444,2]
[423227776,1779955837000,-500.9721188,0.0001444,2]
[423227791,1779955840000,-534.0,0.0001444,2]
[423227789,1779955840000,-1345.70035005,0.0001444,2]
[423227790,1779955840000,-776.96065847,0.0001444,2]
[423227817,1779955842000,-500.0,0.00012105,2]
[423227812,1779955842000,-500.0,0.00012105,2]
[423227814,1779955842000,-500.0,0.00012105,2]
[423227813,1779955842000,-500.0,0.00012105,2]
[423227809,1779955842000,-500.0,0.00012105,2]
[423227811,1779955842000,-500.0,0.00012105,2]
[423227807,1779955842000,-500.0,0.00012105,2]
[423227810,1779955842000,-500.0,0.00012105,2]
[423227808,1779955842000,-500.0,0.00012105,2]
[423227815,1779955842000,-500.0,0.00012105,2]
[423227819,1779955842000,-500.0,0.00012105,2]
[423227816,1779955842000,-500.0,0.00012105,2]
[423227821,1779955842000,-500.0,0.00012105,2]
[423227820,1779955842000,-500.0,0.00012105,2]
[423227829,1779955842000,-500.0,0.000146,2]
[423227830,1779955842000,-2000.0,0.000146,5]
[423227831,1779955842000,-606.7009296,0.00014601,2]
[423227826,1779955842000,-7336.10444233,0.0001452,2]
[423227828,1779955842000,-1069.8004056,0.00014552,2]
[423227825,1779955842000,-911273.96135386,0.0001444,2]
[423227824,1779955842000,-500.0,0.00012105,2]
[423227822,1779955842000,-500.0,0.00012105,2]
[423227823,1779955842000,-500.0,0.00012105,2]
[423227818,1779955842000,-500.0,0.00012105,2]
[423227827,1779955842000,-6826.44778877,0.00014522,2]
[423227855,1779955843000,-500.0,0.000148,5]
[423227862,1779955843000,-1551.0,0.00014867,5]
[423227863,1779955843000,-1513.0,0.00014867,5]
[423227851,1779955843000,-200.0,0.00014756,2]
[423227856,1779955843000,-9869.5123347,0.00014804,2]
[423227859,1779955843000,-1000.0,0.0001485,2]
[423227835,1779955843000,-200.0,0.0001461,2]
[423227860,1779955843000,-1000.0,0.0001485,2]
[423227854,1779955843000,-1000.0,0.000148,2]
[423227857,1779955843000,-7336.10444233,0.00014805,2]
[423227853,1779955843000,-309.0,0.000148,2]
[423227861,1779955843000,-1000.0,0.0001485,2]
[423227852,1779955843000,-190.70808778,0.000148,2]
[423227864,1779955843000,-200.0,0.0001489,2]
[423227866,1779955843000,-159.12,0.00014896,2]
[423227858,1779955843000,-200.0,0.00014847,2]
[423227868,1779955843000,-7336.10444233,0.000149,2]
[423227847,1779955843000,-10000.0,0.00014741,2]
[423227849,1779955843000,-1353.20417073,0.00014756,2]
[423227833,1779955843000,-500.0,0.00014601,2]
[423227837,1779955843000,-342.68,0.0001461,2]
[423227836,1779955843000,-500.0,0.0001461,2]
[423227832,1779955843000,-500.0,0.00014601,2]
[423227834,1779955843000,-500.0,0.00014601,2]
[423227838,1779955843000,-2000.0,0.0001461,2]
[423227840,1779955843000,-200.0,0.0001461,2]
[423227839,1779955843000,-200.0,0.0001461,2]
[423227842,1779955843000,-4572.084,0.00014658,2]
[423227846,1779955843000,-6826.44778877,0.00014711,2]
[423227841,1779955843000,-7336.10444233,0.00014615,2]
[423227843,1779955843000,-272.558,0.00014658,2]
[423227844,1779955843000,-2500.0,0.000147,5]
[423227845,1779955843000,-7336.10444233,0.0001471,2]
[423227848,1779955843000,-200.0,0.00014756,2]